fUST/lending_fUST_20240409
["ID","MTS","AMOUNT","RATE_DAILY","PERIOD"]
[321920924,1712626169093,-4018.61605278,0.00026551,2]
[321920925,1712626173385,150.0,0.00024451,2]
[321920926,1712626222892,150.02051997,0.00024451,2]
[321920949,1712626232767,-5.10218901,0.00024451,2]
[321920950,1712626232776,-360.86438748,0.00026547,2]
[321920952,1712626232786,-154.98450155,0.00026548,2]
[321920953,1712626232795,-300.0,0.00026549,2]
[321920955,1712626232804,-300.0,0.00026549,2]
[321920957,1712626232813,-2763.9336173,0.00026549,2]
[321920959,1712626232822,-996.09810957,0.0002655,2]
[321920960,1712626232834,-8419.89011605,0.0002655,2]
[321920961,1712626232843,-154.98450155,0.0002655,2]
[321920962,1712626232853,-4240.20630644,0.00026551,2]
[321920963,1712626232862,-150.1844328,0.00027297,3]
[321920964,1712626232872,-1930.22588294,0.00027396,2]
[321920965,1712626232884,-179.2175189,0.00027397,2]
[321920966,1712626232893,-214.027793,0.00027397,2]
[321920967,1712626232902,-420.0,0.00028716,2]
[321920968,1712626232911,-420.0,0.00029204,2]
[321920969,1712626232921,-379.01915625,0.00029868,2]
[321920970,1712626232931,-337.441055,0.00029869,2]
[321920971,1712626232940,-960.68235059,0.0003,30]
[321920972,1712626232950,-150.18443276,0.00030448,5]
[321920973,1712626232960,-587.0,0.00031059,2]
[321920974,1712626232970,-587.0,0.00032124,2]
[321920975,1712626232979,-358.40738442,0.00033031,7]
[321920976,1712626232989,-172.0,0.00033032,2]
[321920977,1712626232998,-24900.0,0.00033032,2]
[321920978,1712626233008,-214.027793,0.00033165,2]
[321920979,1712626233017,-150.18443276,0.00033599,6]
[321920980,1712626233028,-10000.0,0.00034,4]
[321920981,1712626233038,-174.3013573,0.00034414,2]
[321920982,1712626233049,-823.0,0.00035337,2]
[321920983,1712626233059,-150.18443276,0.00036749,8]
[321920984,1712626233069,-229.52976,0.00036986,120]
[321920985,1712626233079,-561.55696504,0.00037048,4]
[321920986,1712626233088,-1165.75148064,0.0003793,2]
[321920987,1712626233097,-361.66313785,0.00038033,4]
[321920988,1712626233106,-979.49096649,0.00038218,4]
[321920989,1712626233115,-500.0,0.00038258,120]
[321920990,1712626233126,-399.98,0.00038258,120]
[321920991,1712626233135,-150.96980604,0.0003873,2]
[321920992,1712626233145,-158.39396135,0.00038756,3]
[321920993,1712626233155,-254.85434362,0.00038799,15]
[321920994,1712626233165,-613.87640083,0.00038799,15]
[321920995,1712626233174,-2006.0,0.000388,2]
[321920996,1712626233184,-2000.0,0.000388,2]
[321920997,1712626233194,-1152.0,0.0003887,3]
[321920998,1712626233203,-2000.0,0.000389,2]
[321920999,1712626233212,-214.027793,0.00038933,2]
[321921000,1712626233222,-1417.7219328,0.00038952,2]
[321921001,1712626233232,-329.07331114,0.00038998,4]
[321921002,1712626233241,-1539.58840424,0.00038998,4]
[321921003,1712626233251,-155.16205042,0.00038998,4]
[321921004,1712626233262,-6.17576198,0.00038998,4]
[321921012,1712626238563,-3.99075501,0.00026546,2]
[321921013,1712626238627,-184.10442125,0.00026546,2]
[321921014,1712626238638,-1382.5718181,0.00036748,4]
[321921015,1712626238647,-155.00831589,0.00038998,2]
[321921016,1712626238659,-260.19829729,0.00038998,4]
[321921017,1712626238668,-1166.03678033,0.00038998,4]
[321921018,1712626238677,-357.95896221,0.00038998,4]
[321921019,1712626238687,-807.45699203,0.00038998,4]
[321921020,1712626238697,-359.17425017,0.00038998,4]
[321921021,1712626238706,-1815.67702869,0.00038998,4]
[321921022,1712626238715,-240.47414134,0.00038998,4]
[321921023,1712626238725,-765.63209459,0.00038998,37]
[321921024,1712626238735,-3158.88672522,0.00038998,4]
[321921025,1712626238744,-1259.39,0.00038999,2]
[321921026,1712626238753,-1259.39,0.00038999,2]
[321921027,1712626238762,-1259.39,0.00038999,2]
[321921028,1712626238772,-62.78470047,0.00038999,2]
[321921029,1712626238867,-1196.60529953,0.00038999,2]
[321921030,1712626238877,-1259.39,0.00038999,2]
[321921031,1712626238887,-1259.39,0.00038999,2]
[321921032,1712626238896,-843.07806684,0.00038999,2]
[321921091,1712626240488,-416.31193316,0.00038999,2]
[321921092,1712626240498,-1259.39,0.00038999,2]
[321921093,1712626240508,-1259.39,0.00038999,2]
[321921094,1712626240517,-1259.39,0.00038999,2]
[321921095,1712626240530,-1243.50155558,0.00039,3]
[321921097,1712626240542,-4024.74620211,0.00039,3]
[321921297,1712627236131,500.0,0.000252,4]
[321921298,1712627264513,3000.0,0.000252,4]
[321921299,1712627315442,500.0,0.000252,4]
[321921301,1712627349080,-360.86438748,0.00026328,2]
[321921302,1712627349101,-154.98450155,0.00026328,2]
[321921303,1712627349123,-300.0,0.00026328,2]
[321921304,1712627349146,-300.0,0.00026328,2]
[321921305,1712627349168,-524.73312661,0.00026328,2]
[321921306,1712627349189,-154.98450155,0.00026329,2]
[321921307,1712627349210,-9419.00851662,0.00026329,2]
[321921308,1712627349230,-207.24041701,0.0002633,2]
[321921309,1712627349250,-1963.97984376,0.0002633,2]
[321921310,1712627349270,-185.57928704,0.0002633,2]
[321921311,1712627349371,-154.98450155,0.0002633,2]
[321921312,1712627349392,-154.98450155,0.00026331,2]
[321921313,1712627349413,-277.03921209,0.00026331,2]
[321921314,1712627349432,-154.98450155,0.00026332,2]
[321921315,1712627349454,-1930.68038705,0.00026332,2]
[321921316,1712627349474,-327.96581541,0.00026333,2]
[321921317,1712627349495,-154.98450155,0.00026333,2]
[321921318,1712627349515,-562.79218199,0.00026333,2]
[321921319,1712627349537,-154.98450155,0.00026334,2]
[321921320,1712627349559,-188.09517626,0.00026334,2]
[321921321,1712627349578,-154.98450155,0.00026335,2]
[321921322,1712627349597,-154.98450155,0.00026335,2]
[321921323,1712627349617,-2341.9957789,0.00026552,2]
[321921324,1712627349638,-1500.879744,0.00026637,2]
[321921325,1712627349659,-173.78534601,0.00026703,2]
[321921326,1712627350854,2000.0,0.000252,4]
[321921327,1712627372115,-154.98450155,0.00026327,2]
[321921328,1712627372136,-292.79444845,0.00026327,2]
[321921400,1712627438751,-150.0,0.00024452,2]
[321921402,1712627438761,-227.67701224,0.00026327,2]
[321921404,1712627438771,-7.53014699,0.00026703,2]
[321921406,1712627438780,-294.01053058,0.00027297,3]
[321921408,1712627438790,-238.044831,0.00027397,2]
[321921410,1712627438799,-179.99391,0.00027397,2]
[321921412,1712627438808,-157.0,0.00028483,2]
[321921414,1712627438818,-294.01053052,0.00029052,4]
[321921416,1712627438828,-294.01053052,0.00030807,5]
[321921418,1712627438838,-157.86467748,0.00031177,2]
[321921423,1712627438880,-242.13532252,0.00031177,2]
[321921425,1712627438889,-3678.70243851,0.00031178,2]
[321921519,1712627440673,-4361.53505865,0.00031178,2]
[321921522,1712627440688,-16859.76250284,0.00031178,2]
[321921524,1712627440698,-155.43846762,0.00031198,4]
[321921526,1712627440707,-164.17559078,0.00032,120]
[321921528,1712627440716,-294.01053052,0.00032562,6]
[321921530,1712627440725,-238.044831,0.00033165,2]
[321921532,1712627440734,-179.99391,0.00033165,2]
[321921534,1712627440743,-177.311853,0.00033606,2]
[321921536,1712627440753,-560.0,0.00034295,2]
[321921538,1712627440762,-294.01053052,0.00034317,6]
[321921540,1712627440771,-500.0,0.00035,10]
[321921542,1712627440780,-162.6152,0.00035362,30]
[321921544,1712627440789,-294.01053052,0.00036072,7]
[321921546,1712627440798,-278.44201901,0.00036985,4]
[321921548,1712627440807,-440.6450495,0.00036985,4]
[321921550,1712627440816,-1428.786285,0.00036986,120]
[321921552,1712627440825,-150.98490151,0.00037648,2]
[321921554,1712627440834,-783.0,0.00037725,2]
[321921556,1712627440843,-2500.7695974,0.00037777,2]
[321921558,1712627440851,-294.01053052,0.00037827,8]
[321921560,1712627440861,-263.08988607,0.00037899,15]
[321921562,1712627440870,-30315.67829992,0.000379,2]
[321921564,1712627440881,-5799.68472685,0.000379,2]
[321921685,1712627444065,-1.15886496,0.000379,2]
[321921752,1712628561116,-447.77895,0.00026344,2]
[321921753,1712628568136,-205.70180304,0.00026343,2]
[321921754,1712628568159,-581.86154743,0.00026343,2]
[321921755,1712628568179,-334.00716462,0.00026344,2]
[321921756,1712628568199,-327.96581541,0.00026344,2]
[321921757,1712628568218,-282.31285316,0.00026344,2]
[321921758,1712628568238,-178.0,0.00026344,2]
[321921759,1712628568257,-188.6336911,0.00026345,2]
[321921760,1712628568277,-155.0,0.00026345,2]
[321921761,1712628568296,-185.57928704,0.00026345,2]
[321921762,1712628568316,-3718.21894048,0.00026345,2]
[321921763,1712628568336,-473.2366857,0.00026346,2]
[321921764,1712628568355,-155.0,0.00026346,2]
[321921765,1712628568374,-868.36531208,0.00026346,2]
[321921766,1712628568394,-300.0,0.00026346,2]
[321921767,1712628568415,-300.0,0.00026346,2]
[321921768,1712628568435,-24900.0,0.00026347,2]
[321921769,1712628568454,-156.78359481,0.00026452,2]
[321921770,1712628568473,-155.0,0.00026452,2]
[321921771,1712628568493,-155.0,0.00026452,2]
[321921772,1712628568514,-1963.97984376,0.00026454,2]
[321921773,1712628568535,-750.439872,0.00026455,2]
[321921774,1712628568555,-4867.51867945,0.00026752,2]
[321921842,1712628632050,-155.0,0.00024651,2]
[321921844,1712628632059,-227.34269325,0.00024652,2]
[321921846,1712628632068,-177.311853,0.00025072,2]
[321921848,1712628632077,-2935.70815242,0.00026342,2]
[321921849,1712628632087,-300.0,0.00026751,2]
[321921852,1712628632096,-2040.88446034,0.00026752,2]
[321921854,1712628632105,-761.75284097,0.00026752,2]
[321921882,1712628637899,-308.45638369,0.00026752,2]
[321921884,1712628637913,-5838.19391513,0.00026752,2]
[321921885,1712628637924,-705.4130678,0.00026779,2]
[321921886,1712628637935,-172.9376246,0.00026851,2]
[321921887,1712628637946,-161.167458,0.00027397,2]
[321921888,1712628637956,-156.78359481,0.00029246,2]
[321921890,1712628637968,-420.0,0.00029427,2]
[321921892,1712628637978,-170.49390178,0.00029652,2]
[321921912,1712628640418,-56.84879147,0.00029652,2]
[321921913,1712628640428,-353.49120849,0.00032369,2]
[321921917,1712628640531,-233.50879151,0.00032369,2]
[321921918,1712628640540,-161.167458,0.00034247,2]
[321921919,1712628640549,-227.34269325,0.00034652,2]
[321921920,1712628640560,-823.0,0.00035606,2]
[321921921,1712628640569,-249.33877337,0.00036899,4]
[321921922,1712628640580,-1272.37103576,0.000369,4]
[321921923,1712628640589,-708.60156466,0.0003698,4]
[321921924,1712628640599,-1396.99419633,0.00036986,120]
[321921951,1712628912219,1004.68709445,0.0002102,2]
[321921952,1712628943418,155.0,0.0002102,2]
[321921953,1712628945146,19135.52112826,0.0002102,2]
[321921954,1712628957416,229.08122695,0.0002102,2]
[321921955,1712628961123,2147.75731973,0.0002102,2]
[321921956,1712628961481,886.79559656,0.00021019,2]
[321921959,1712629112932,522.35005297,0.00024654,4]
[321921969,1712629554512,522.35005297,0.00022612,4]
[321921970,1712629606472,884.028975,0.00020853,2]
[321921971,1712629632745,776.1696414,0.00020813,2]
[321921972,1712629711635,2460.9167253,0.00020776,2]
[321921973,1712629741928,1550.7402959,0.00020774,2]
[321921974,1712629746120,-300.0,0.00021693,2]
[321921975,1712629746142,-300.0,0.00021693,2]
[321921976,1712629746161,-407.69592082,0.00021693,2]
[321921977,1712629746181,-303.81962515,0.00021693,2]
[321921978,1712629746201,-2579.961404,0.00021694,2]
[321921979,1712629746221,-155.0,0.00021694,2]
[321921980,1712629746242,-687.19966601,0.00021694,2]
[321921981,1712629746262,-2121.15236818,0.00021694,2]
[321921982,1712629746282,-1617.16242552,0.00021694,2]
[321921983,1712629746302,-1042.91596156,0.00021694,2]
[321921984,1712629746321,-1325.8495439,0.00021695,2]
[321921985,1712629746345,-24900.0,0.00021695,2]
[321921986,1712629746364,-282.7345517,0.00021768,2]
[321921987,1712629746384,-240.67684413,0.00021768,2]
[321921988,1712629746404,-2935.70815242,0.00021768,2]
[321921989,1712629746423,-207.24041701,0.00021769,2]
[321921990,1712629746443,-188.6336911,0.00021769,2]
[321921991,1712629746462,-1866.00896233,0.00021769,2]
[321921992,1712629746483,-473.2366857,0.0002177,2]
[321921993,1712629746503,-360.86438748,0.0002177,2]
[321921994,1712629746526,-1131.94892897,0.00021771,2]
[321921995,1712629746546,-155.0,0.00021771,2]
[321921996,1712629746566,-185.57928704,0.00021771,2]
[321921997,1712629746588,-155.0,0.00021772,2]
[321921998,1712629746608,-22745.90339692,0.00021772,2]
[321921999,1712629746628,-167.33578067,0.00021779,2]
[321922000,1712629746648,-172.61105688,0.00021779,2]
[321922001,1712629746667,-1449.4105405,0.00021781,2]
[321922002,1712629746687,-372.25132826,0.00021786,2]
[321922003,1712629746775,-3105.9257755,0.00021906,2]
[321922004,1712629746796,-327.96581541,0.00022498,2]
[321922005,1712629746816,-179.490426,0.00022613,2]
[321922006,1712629746839,-420.0,0.00023581,2]
[321922007,1712629746861,-420.0,0.00023863,2]
[321922008,1712629746883,-372.25132822,0.00024269,2]
[321922009,1712629746904,-200.0,0.00024662,2]
[321922010,1712629746926,-587.0,0.00025633,2]
[321922011,1712629746948,-11951.8091605,0.00025666,2]
[321922012,1712629746972,-587.0,0.00026249,2]
[321922013,1712629746995,-249.01156886,0.00026651,2]
[321922014,1712629747017,-372.25132822,0.00026753,3]
[321922015,1712629747039,-191.430602,0.00027397,2]
[321922016,1712629747062,-227.374586,0.00027397,2]
[321922017,1712629747087,-580.0,0.00027863,2]
[321922018,1712629747110,-823.0,0.00028874,2]
[321922019,1712629747136,-372.25132822,0.00029236,4]
[321922020,1712629747158,-319.0,0.0003,2]
[321922021,1712629747184,-211.29476558,0.00030528,2]
[321922022,1712629747208,-500.0,0.00030892,2]
[321922023,1712629747234,-500.0,0.00030947,2]
[321922024,1712629747256,-500.0,0.00031002,2]
[321922025,1712629747281,-500.0,0.00031056,2]
[321922026,1712629747305,-412.11279396,0.00031111,2]
[321922027,1712629752209,-188.09517626,0.00021692,2]
[321922028,1712629752231,-156.78359481,0.00021693,2]
[321922043,1712629789149,150.0,0.00023566,2]
[321922091,1712629838015,-258.18627267,0.00027738,2]
[321922093,1712629838025,-150.0,0.00028566,2]
[321922095,1712629838035,-701.81389074,0.00031278,4]
[321922097,1712629838045,-884.028975,0.00031279,2]
[321922099,1712629838054,-199.63979928,0.00031619,2]
[321922101,1712629838063,-372.25132822,0.00031719,5]
[321922103,1712629838073,-191.430602,0.00033165,2]
[321922106,1712629838081,-227.374586,0.00033165,2]
[321922108,1712629838090,-372.25132822,0.00034202,6]
[321922110,1712629838100,-199.63979926,0.00034659,2]
[321922112,1712629838109,-253.44257922,0.00034998,2]
[321922114,1712629838118,-2762.66324515,0.00034998,4]
[321922116,1712629838129,-267.03875448,0.00034998,4]
[321922118,1712629838140,-914.62757175,0.00034998,4]
[321922127,1712629838218,-440.6450495,0.00034999,4]
[321922129,1712629838228,-408.20295126,0.00034999,4]
[321922131,1712629838238,-3466.35889213,0.00034999,4]
[321922132,1712629838248,-596.08980381,0.00035,2]
[321922133,1712629838257,-668.76456763,0.00035601,4]
[321922134,1712629838267,-400.0,0.00035602,2]
[321922135,1712629838276,-280.576899,0.00035603,2]
[321922136,1712629838285,-383.559681,0.00035603,2]
[321922137,1712629838294,-383.559681,0.00035603,2]
[321922138,1712629838303,-223.137834,0.00035603,2]
[321922139,1712629838312,-223.137834,0.00035603,2]
[321922140,1712629838321,-151.0,0.00035603,2]
[321922141,1712629838330,-151.0,0.00035603,2]
[321922142,1712629838340,-151.0,0.00035603,2]
[321922143,1712629838349,-151.0,0.00035603,2]
[321922144,1712629838358,-151.300064,0.00035603,2]
[321922145,1712629838367,-202.815624,0.00035603,2]
[321922146,1712629838377,-202.815624,0.00035603,2]
[321922147,1712629838386,-151.0,0.00035603,2]
[321922149,1712629838396,-1271.729421,0.00035603,2]
[321922151,1712629838405,-1271.729421,0.00035603,2]
[321922152,1712629838414,-566.649778,0.00035603,2]
[321922153,1712629838424,-151.646154,0.00035603,2]
[321922154,1712629838433,-566.649778,0.00035603,2]
[321922155,1712629838443,-151.0,0.00035603,2]
[321922156,1712629838454,-151.0,0.00035603,2]
[321922157,1712629838463,-151.0,0.00035603,2]
[321922158,1712629838473,-700.710902,0.00035603,2]
[321922159,1712629838482,-700.710902,0.00035603,2]
[321922160,1712629838491,-2450.735862,0.00035603,2]
[321922161,1712629838502,-2450.735862,0.00035603,2]
[321922162,1712629838511,-212.194628,0.00035603,2]
[321922163,1712629838520,-212.194628,0.00035603,2]
[321922164,1712629838530,-200.266613,0.00035603,2]
[321922165,1712629838539,-200.266613,0.00035603,2]
[321922166,1712629838549,-213.0,0.00035629,2]
[321922167,1712629838558,-151.0,0.00035629,2]
[321922168,1712629838567,-223.137834,0.00035629,2]
[321922169,1712629838577,-223.137834,0.00035629,2]
[321922170,1712629838586,-151.0,0.00035629,2]
[321922171,1712629838595,-151.0,0.00035629,2]
[321922172,1712629838605,-151.0,0.00035629,2]
[321922173,1712629838614,-231.278903,0.00035629,2]
[321922174,1712629838623,-202.815624,0.00035629,2]
[321922175,1712629838632,-202.815624,0.00035629,2]
[321922176,1712629838641,-162.214015,0.00035629,2]
[321922177,1712629838651,-1271.729421,0.00035629,2]
[321922178,1712629838660,-1271.729421,0.00035629,2]
[321922179,1712629838669,-566.649778,0.00035629,2]
[321922180,1712629838678,-566.649778,0.00035629,2]
[321922181,1712629838687,-151.0,0.00035629,2]
[321922182,1712629838696,-151.0,0.00035629,2]
[321922183,1712629838705,-151.0,0.00035629,2]
[321922184,1712629838715,-700.710902,0.00035629,2]
[321922185,1712629838725,-700.710902,0.00035629,2]
[321922186,1712629838734,-700.710902,0.00035629,2]
[321922187,1712629838743,-700.710902,0.00035629,2]
[321922188,1712629838752,-2450.735862,0.00035629,2]
[321922189,1712629838761,-2450.735862,0.00035629,2]
[321922190,1712629838771,-2450.735862,0.00035629,2]
[321922191,1712629838781,-212.194628,0.00035629,2]
[321922192,1712629838790,-2450.735862,0.00035629,2]
[321922193,1712629838800,-212.194628,0.00035629,2]
[321922194,1712629838809,-212.194628,0.00035629,2]
[321922195,1712629838819,-212.194628,0.00035629,2]
[321922196,1712629838829,-200.266613,0.00035629,2]
[321922197,1712629838839,-200.266613,0.00035629,2]
[321922198,1712629838848,-200.266613,0.00035629,2]
[321922199,1712629838858,-200.266613,0.00035629,2]
[321922200,1712629838867,-36212.4183,0.00035629,30]
[321922201,1712629838877,-151.0,0.00035783,2]
[321922202,1712629838887,-151.0,0.00035783,2]
[321922203,1712629838898,-929.38817377,0.00036003,4]
[321922204,1712629838908,-155.2948965,0.00036098,4]
[321922205,1712629838918,-151.0,0.00036422,2]
[321922206,1712629838929,-372.25132822,0.00036686,8]
[321922207,1712629838939,-1272.37103576,0.00036946,4]
[321922208,1712629838948,-1207.85390159,0.00036947,4]
[321922209,1712629838959,-320.66701337,0.00036984,4]
[321922210,1712629838970,-334.26720058,0.00036984,4]
[321922211,1712629838979,-309.46357405,0.00036984,4]
[321922212,1712629838989,-422.65765475,0.00036984,4]
[321922213,1712629838998,-231.56571446,0.00036984,4]
[321922214,1712629839007,-401.44544674,0.00036984,4]
[321922215,1712629839017,-1063.36198929,0.00036984,4]
[321922216,1712629839026,-21021.05888251,0.00036984,4]
[321922217,1712629839035,-1722.81348497,0.00036984,4]
[321922218,1712629839044,-155.03959068,0.00036984,4]
[321922219,1712629839054,-258.27489927,0.00036984,4]
[321922220,1712629839063,-527.08838503,0.00036984,4]
[321922221,1712629839073,-441.61358978,0.00036984,4]
[321922222,1712629839082,-186.63331476,0.00036984,4]
[321922223,1712629839091,-222.67612012,0.00036984,4]
[321922224,1712629839101,-597.00638538,0.00036984,4]
[321922225,1712629839111,-309.23491498,0.00036984,4]
[321922226,1712629839120,-934.17,0.00036985,2]
[321922227,1712629839129,-934.17,0.00036985,2]
[321922228,1712629839139,-934.17,0.00036985,2]
[321922229,1712629839152,-934.17,0.00036985,2]
[321922230,1712629839164,-934.17,0.00036985,2]
[321922231,1712629839175,-934.17,0.00036985,2]
[321922232,1712629839185,-934.17,0.00036985,2]
[321922233,1712629839194,-934.17,0.00036985,2]
[321922234,1712629839204,-934.17,0.00036985,2]
[321922235,1712629839213,-151.0,0.00036985,2]
[321922236,1712629839222,-151.0,0.00036985,2]
[321922237,1712629839231,-151.0,0.00036985,2]
[321922238,1712629839242,-202.815624,0.00036985,2]
[321922239,1712629839252,-202.815624,0.00036985,2]
[321922240,1712629839263,-1271.729421,0.00036985,2]
[321922241,1712629839274,-1271.729421,0.00036985,2]
[321922242,1712629839284,-566.649778,0.00036985,2]
[321922243,1712629839294,-566.649778,0.00036985,2]
[321922244,1712629839304,-151.0,0.00036985,2]
[321922245,1712629839368,-231.308863,0.00036985,2]
[321922246,1712629839378,-151.0,0.00036985,2]
[321922247,1712629839388,-700.710902,0.00036985,2]
[321922248,1712629839400,-700.710902,0.00036985,2]
[321922249,1712629839409,-2450.735862,0.00036985,2]
[321922251,1712629839420,-2450.735862,0.00036985,2]
[321922252,1712629839429,-212.194628,0.00036985,2]
[321922253,1712629839439,-212.194628,0.00036985,2]
[321922254,1712629839450,-200.266613,0.00036985,2]
[321922255,1712629839459,-200.266613,0.00036985,2]
[321922256,1712629839469,-164.14803076,0.00036985,10]
[321922257,1712629839479,-6340.22219606,0.00036985,4]
[321922259,1712629839488,-241927.00722097,0.00036986,3]
[321922261,1712629839498,-27790.58706728,0.00036986,60]
[321922262,1712629839508,-214.755191,0.00036986,2]
[321922263,1712629839517,-151.0,0.00036986,2]
[321922264,1712629839526,-272.329856,0.00036986,2]
[321922265,1712629839535,-383.559681,0.00036986,2]
[321922266,1712629839545,-383.559681,0.00036986,2]
[321922267,1712629839555,-383.559681,0.00036986,2]
[321922268,1712629839564,-383.559681,0.00036986,2]
[321922269,1712629839574,-151.0,0.00036986,2]
[321922270,1712629839583,-223.137834,0.00036986,2]
[321922271,1712629839592,-223.137834,0.00036986,2]
[321922272,1712629839602,-223.137834,0.00036986,2]
[321922273,1712629839611,-223.137834,0.00036986,2]
[321922274,1712629839621,-151.0,0.00036986,2]
[321922275,1712629839631,-151.0,0.00036986,2]
[321922276,1712629839640,-151.0,0.00036986,2]
[321922277,1712629839651,-151.0,0.00036986,2]
[321922278,1712629839661,-151.0,0.00036986,2]
[321922279,1712629839671,-151.0,0.00036986,2]
[321922280,1712629839680,-151.0,0.00036986,2]
[321922281,1712629839689,-151.0,0.00036986,2]
[321922282,1712629839699,-151.0,0.00036986,2]
[321922283,1712629839709,-202.815624,0.00036986,2]
[321922284,1712629839719,-202.815624,0.00036986,2]
[321922285,1712629839729,-202.815624,0.00036986,2]
[321922286,1712629839740,-202.815624,0.00036986,2]
[321922287,1712629839749,-202.815624,0.00036986,2]
[321922288,1712629839758,-202.815624,0.00036986,2]
[321922289,1712629839768,-1271.729421,0.00036986,2]
[321922290,1712629839778,-1271.729421,0.00036986,2]
[321922291,1712629839789,-1271.729421,0.00036986,2]
[321922292,1712629839799,-1271.729421,0.00036986,2]
[321922293,1712629839808,-1271.729421,0.00036986,2]
[321922294,1712629839817,-1271.729421,0.00036986,2]
[321922295,1712629839827,-566.649778,0.00036986,2]
[321922296,1712629839836,-566.649778,0.00036986,2]
[321922297,1712629839845,-566.649778,0.00036986,2]
[321922298,1712629839855,-566.649778,0.00036986,2]
[321922299,1712629839865,-566.649778,0.00036986,2]
[321922300,1712629839874,-566.649778,0.00036986,2]
[321922301,1712629839884,-151.0,0.00036986,2]
[321922302,1712629839893,-151.0,0.00036986,2]
[321922303,1712629839905,-151.0,0.00036986,2]
[321922304,1712629839914,-152.715741,0.00036986,2]
[321922305,1712629839924,-700.710902,0.00036986,2]
[321922306,1712629839934,-700.710902,0.00036986,2]
[321922307,1712629839943,-700.710902,0.00036986,2]
[321922308,1712629839953,-700.710902,0.00036986,2]
[321922309,1712629839962,-700.710902,0.00036986,2]
[321922310,1712629839972,-700.710902,0.00036986,2]
[321922311,1712629839981,-700.710902,0.00036986,2]
[321922313,1712629839991,-700.710902,0.00036986,2]
[321922315,1712629840001,-2450.735862,0.00036986,2]
[321922317,1712629840010,-2450.735862,0.00036986,2]
[321922318,1712629840019,-2450.735862,0.00036986,2]
[321922319,1712629840028,-2450.735862,0.00036986,2]
[321922320,1712629840037,-2450.735862,0.00036986,2]
[321922321,1712629840046,-2450.735862,0.00036986,2]
[321922322,1712629840055,-212.194628,0.00036986,2]
[321922323,1712629840064,-2450.735862,0.00036986,2]
[321922324,1712629840075,-2450.735862,0.00036986,2]
[321922325,1712629840085,-212.194628,0.00036986,2]
[321922326,1712629840095,-212.194628,0.00036986,2]
[321922327,1712629840105,-212.194628,0.00036986,2]
[321922328,1712629840115,-212.194628,0.00036986,2]
[321922329,1712629840125,-212.194628,0.00036986,2]
[321922330,1712629840134,-212.194628,0.00036986,2]
[321922331,1712629840146,-212.194628,0.00036986,2]
[321922332,1712629840157,-200.266613,0.00036986,2]
[321922333,1712629840170,-200.266613,0.00036986,2]
[321922334,1712629840180,-200.266613,0.00036986,2]
[321922335,1712629840191,-200.266613,0.00036986,2]
[321922336,1712629840200,-151.0,0.00036986,2]
[321922337,1712629840211,-151.0,0.00036986,2]
[321922338,1712629840220,-200.266613,0.00036986,2]
[321922339,1712629840230,-200.266613,0.00036986,2]
[321922340,1712629840240,-200.266613,0.00036986,2]
[321922341,1712629840250,-200.266613,0.00036986,2]
[321922342,1712629840259,-151.236685,0.00036986,2]
[321922343,1712629840269,-151.0,0.00036986,2]
[321922344,1712629840282,-250.554642,0.00036986,2]
[321922345,1712629840306,-2242.690985,0.00036986,120]
[321922346,1712629840331,-154.98450155,0.00037,4]
[321922347,1712629840356,-2000.0,0.00037,2]
[321922348,1712629840381,-302.0,0.00037034,4]
[321922349,1712629840411,-931.1086778,0.00037238,4]
[321922350,1712629840437,-476.28829944,0.00037238,4]
[321922351,1712629840464,-151.0,0.00037238,2]
[321922352,1712629840491,-151.0,0.00037238,2]
[321922353,1712629840501,-2000.0,0.000375,3]
[321922354,1712629840511,-3724.10106666,0.00037618,4]
[321922355,1712629840780,-464.62767081,0.00034,4]
[321922356,1712629840789,-34.70126736,0.00037618,4]
[321922393,1712629846239,-200.75105881,0.00037618,4]